fUSD/lending_fUSD_20241101
["ID","MTS","AMOUNT","RATE_DAILY","PERIOD"]
[341153630,1730478641314,-1000.0,0.0004477,3]
[341153632,1730478641325,-1000.0,0.0004477,3]
[341153634,1730478641335,-1000.0,0.0004477,3]
[341153636,1730478641345,-500.0,0.0004477,3]
[341153638,1730478641356,-500.0,0.0004477,3]
[341153640,1730478641366,-500.0,0.0004477,3]
[341153642,1730478641377,-1000.0,0.0004477,3]
[341153644,1730478641387,-500.0,0.0004477,3]
[341153646,1730478641398,-2209.37553995,0.00044772,2]
[341153648,1730478641409,-1000.0,0.00044773,13]
[341153651,1730478641419,-1000.0,0.00044773,13]
[341153653,1730478641431,-1000.0,0.00044773,13]
[341153655,1730478641444,-1000.0,0.00044773,13]
[341153657,1730478641454,-2110.0,0.00044776,30]
[341153659,1730478641464,-500.0,0.00044776,30]
[341153661,1730478641475,-500.0,0.00044776,30]
[341153663,1730478641486,-500.0,0.00044776,30]
[341153665,1730478641496,-500.0,0.00044776,30]
[341153667,1730478641507,-500.0,0.00044776,30]
[341153670,1730478641517,-500.0,0.00044776,30]
[341153672,1730478641528,-500.0,0.00044776,30]
[341153674,1730478641539,-500.0,0.00044776,30]
[341153676,1730478641552,-500.0,0.00044776,30]
[341153678,1730478641562,-500.0,0.00044776,30]
[341153680,1730478641572,-500.0,0.00044776,30]
[341153682,1730478641582,-500.0,0.00044776,30]
[341153684,1730478641594,-500.0,0.00044776,30]
[341153686,1730478641605,-500.0,0.00044776,30]
[341153688,1730478641615,-500.0,0.00044776,30]
[341153690,1730478641627,-500.0,0.00044776,30]
[341153692,1730478641638,-500.0,0.00044776,30]
[341153694,1730478641649,-500.0,0.00044776,30]
[341153696,1730478641659,-500.0,0.00044776,30]
[341153699,1730478641670,-500.0,0.00044776,30]
[341153701,1730478641680,-500.0,0.00044776,30]
[341153703,1730478641695,-500.0,0.00044776,30]
[341153705,1730478641705,-500.0,0.00044776,30]
[341153707,1730478641717,-500.0,0.00044776,30]
[341153709,1730478641727,-500.0,0.00044776,30]
[341153711,1730478641738,-500.0,0.00044776,30]
[341153713,1730478641748,-487.35147276,0.00044776,30]
[341153715,1730478641758,-1692.78,0.000448,2]
[341153717,1730478641769,-1100.0,0.000448,16]
[341153719,1730478641779,-500.0,0.00044815,3]
[341153721,1730478641790,-500.0,0.00044815,3]
[341153723,1730478641801,-1197.12,0.00044815,120]
[341153726,1730478641811,-43397.49829134,0.00044816,26]
[341153728,1730478641826,-4928.1885491,0.00044816,26]
[341153730,1730478641836,-151.0,0.00044816,14]
[341153732,1730478641846,-150.0,0.00044819,30]
[341153734,1730478641857,-150.0,0.00044819,30]
[341153736,1730478641868,-200.0,0.00044819,30]
[341153738,1730478641879,-500.0,0.00044826,3]
[341153740,1730478641890,-500.0,0.00044826,3]
[341153742,1730478641901,-500.0,0.00044826,3]
[341153744,1730478641913,-500.0,0.00044826,3]
[341153747,1730478641924,-150.0,0.00044839,14]
[341153749,1730478641935,-157.0,0.00044841,20]
[341153751,1730478641953,-157.9,0.00044841,20]
[341153753,1730478641963,-700.0,0.00044841,16]
[341153755,1730478641973,-700.0,0.00044841,16]
[341153756,1730478641982,-700.0,0.00044841,16]
[341153758,1730478641992,-700.0,0.00044841,16]
[341153760,1730478642001,-700.0,0.00044841,16]
[341153762,1730478642011,-700.0,0.00044841,16]
[341153764,1730478642020,-700.0,0.00044841,16]
[341153766,1730478642031,-700.0,0.00044841,16]
[341153768,1730478642041,-700.0,0.00044841,16]
[341153770,1730478642050,-700.0,0.00044841,16]
[341153772,1730478642060,-17561.0,0.00044842,20]
[341153774,1730478642070,-224.59,0.00044879,2]
[341153794,1730478642265,-2200.0,0.000449,16]
[341153796,1730478642276,-200.00000001,0.00044915,30]
[341153798,1730478642286,-500.0,0.00044927,3]
[341153800,1730478642296,-500.0,0.00044931,3]
[341153802,1730478642307,-500.0,0.00044931,3]
[341153804,1730478642316,-500.0,0.00044931,3]
[341153806,1730478642326,-448.2386,0.00044931,3]
[341153808,1730478642336,-661.85,0.00044931,3]
[341153810,1730478642346,-535.83,0.00044931,3]
[341153812,1730478642356,-500.0,0.00044947,3]
[341153814,1730478642366,-1056.06,0.0004495,2]
[341153816,1730478642376,-6982.93739097,0.00045,120]
[341153818,1730478642386,-740.0,0.00045,120]
[341153820,1730478642396,-273.92212713,0.00045,20]
[341153822,1730478642405,-800.0,0.00045,7]
[341153824,1730478642415,-1000.0,0.00045,120]
[341153826,1730478642424,-1000.0,0.00045,120]
[341153828,1730478642433,-844.19141841,0.00045,120]
[341153830,1730478642447,-500.0,0.00045,3]
[341153832,1730478642456,-500.0,0.00045,3]
[341153834,1730478642466,-150.0,0.00045088,2]
[341153836,1730478642476,-500.0,0.000451,3]
[341153838,1730478642486,-500.0,0.000451,3]
[341153840,1730478642495,-500.0,0.000451,3]
[341153842,1730478642505,-500.0,0.000451,3]
[341153844,1730478642514,-551.21940694,0.00045133,2]
[341153846,1730478642525,-500.0,0.00045201,3]
[341153848,1730478642534,-252.82195448,0.00045205,3]
[341153850,1730478642545,-500.0,0.00045205,3]
[341153852,1730478642557,-500.0,0.00045205,3]
[341153854,1730478642566,-661.85,0.00045205,3]
[341153856,1730478642576,-535.83,0.00045205,3]
[341153858,1730478642585,-500.0,0.00045221,3]
[341153860,1730478642595,-199.423,0.0004525,14]
[341153862,1730478642604,-500.0,0.00045274,3]
[341153864,1730478642613,-500.0,0.00045274,3]
[341153865,1730478642623,-1701.43,0.00045276,30]
[341153867,1730478642633,-385.89,0.00045374,3]
[341153869,1730478642642,-500.0,0.00045374,3]
[341153871,1730478642651,-500.0,0.00045374,3]
[341153873,1730478642661,-500.0,0.00045374,3]
[341153875,1730478642671,-295.74525,0.00045391,14]
[341153877,1730478642680,-179.2245,0.00045391,14]
[341153879,1730478642693,-500.0,0.000454,120]
[341153881,1730478642702,-150.0,0.0004545,30]
[341153883,1730478642711,-150.0,0.0004545,30]
[341153885,1730478642720,-150.0,0.0004545,30]
[341153887,1730478642729,-172.54051232,0.0004545,30]
[341153889,1730478642738,-150.0,0.0004545,30]
[341153891,1730478642748,-178.89349906,0.0004545,30]
[341153893,1730478642758,-5322.4423161,0.00045469,2]
[341153895,1730478642768,-500.0,0.00045475,3]
[341153897,1730478642778,-2620.0,0.00045478,51]
[341153899,1730478642787,-500.0,0.00045479,3]
[341153901,1730478642797,-500.0,0.00045479,3]
[341153903,1730478642807,-661.85,0.00045479,3]
[341153905,1730478642816,-535.83,0.00045479,3]
[341153907,1730478642826,-812.0,0.00045484,2]
[341153909,1730478642835,-150.0,0.00045484,2]
[341153911,1730478642845,-500.0,0.00045495,3]
[341153913,1730478642854,-500.0,0.00045499,3]
[341153915,1730478642864,-151.0,0.00045499,14]
[341153917,1730478642873,-15892.82997077,0.000455,2]
[341153919,1730478642883,-46049.00774903,0.000455,2]
[341153931,1730478642976,-759.77742422,0.000455,2]
[341153933,1730478642988,-2005.49516999,0.000455,2]
[341153953,1730478643137,-380.30000001,0.000455,2]
[341153956,1730478643151,-311.511702,0.000455,2]
[341153958,1730478643162,-2717.69459299,0.000455,2]
[341153967,1730478643241,-557.0,0.00042484,2]
[341153969,1730478643251,-515.0,0.00044566,7]
[341153971,1730478643260,-200.0,0.000451,3]
[341153973,1730478643269,-413.3,0.00045484,2]
[341153975,1730478643279,-202348.02065683,0.000455,2]
[341153991,1730478643428,-28.72257535,0.000451,3]
[341154129,1730478646580,-500.0,0.00040165,2]
[341154130,1730478646591,-554.83047128,0.00041095,3]
[341154131,1730478646601,-150.0,0.0004525,14]
[341154132,1730478646610,-151.0,0.00045499,14]
[341154133,1730478646619,-37070.76952952,0.000455,2]
[341154134,1730478646631,-688.04659996,0.000455,2]
[341154135,1730478646643,-795.62010931,0.000455,2]
[341154136,1730478646654,-1764.935036,0.000455,2]
[341154148,1730478646803,-225904.23954078,0.000455,2]
[341154150,1730478646813,-160000.0,0.000455,120]
[341154152,1730478646823,-151.0,0.000455,14]
[341154154,1730478646832,-151.0,0.000455,14]
[341154156,1730478646842,-151.0,0.000455,14]
[341154158,1730478646851,-155.650431,0.000455,14]
[341154160,1730478646861,-151.0,0.000455,7]
[341154162,1730478646870,-151.0,0.000455,14]
[341154164,1730478646879,-221.301634,0.000455,14]
[341154166,1730478646888,-221.301634,0.000455,14]
[341154168,1730478646898,-151.0,0.000455,14]
[341154170,1730478646907,-151.0,0.000455,14]
[341154172,1730478646917,-1197.12,0.000455,120]
[341154174,1730478646926,-175.31,0.00045534,120]
[341154176,1730478646937,-500.0,0.00045548,3]
[341154178,1730478646947,-500.0,0.00045548,3]
[341154180,1730478646957,-167.41740255,0.00045563,28]
[341154181,1730478646967,-2997.5952134,0.00045594,2]
[341154183,1730478646977,-1286.99175,0.00045625,14]
[341154185,1730478646986,-180.51925,0.00045625,14]
[341154187,1730478646996,-999.0,0.00045643,120]
[341154189,1730478647005,-999.0,0.00045643,120]
[341154190,1730478647015,-999.0,0.00045643,120]
[341154192,1730478647025,-999.0,0.00045643,120]
[341154194,1730478647034,-999.0,0.00045643,120]
[341154196,1730478647044,-999.0,0.00045643,120]
[341154198,1730478647054,-999.0,0.00045643,120]
[341154200,1730478647064,-999.0,0.00045643,120]
[341154202,1730478647074,-999.0,0.00045643,120]
[341154204,1730478647083,-999.0,0.00045643,120]
[341154206,1730478647092,-999.0,0.00045643,120]
[341154208,1730478647102,-999.0,0.00045643,120]
[341154210,1730478647112,-999.0,0.00045643,120]
[341154212,1730478647121,-999.0,0.00045643,120]
[341154214,1730478647131,-680.76997226,0.00045643,120]
[341154216,1730478647141,-500.0,0.00045648,3]
[341154218,1730478647150,-500.0,0.00045648,3]
[341154220,1730478647160,-500.0,0.00045648,3]
[341154222,1730478647169,-500.0,0.00045749,3]
[341154224,1730478647179,-500.0,0.00045753,3]
[341154226,1730478647190,-500.0,0.00045753,3]
[341154228,1730478647200,-661.85,0.00045753,3]
[341154230,1730478647210,-535.83,0.00045753,3]
[341154232,1730478647219,-500.0,0.00045769,3]
[341154234,1730478647228,-152.0,0.00045772,5]
[341154236,1730478647237,-500.0,0.00045822,3]
[341154238,1730478647247,-500.0,0.00045822,3]
[341154240,1730478647257,-500.0,0.00045922,3]
[341154242,1730478647267,-500.0,0.00045922,3]
[341154244,1730478647277,-500.0,0.00045922,3]
[341154246,1730478647286,-249.7705,0.00045937,14]
[341154247,1730478647296,-300.0,0.00046,120]
[341154249,1730478647305,-702.84880391,0.00046,120]
[341154251,1730478647315,-500.0,0.00046023,3]
[341154253,1730478647324,-500.0,0.00046027,3]
[341154255,1730478647334,-500.0,0.00046027,3]
[341154257,1730478647344,-661.85,0.00046027,3]
[341154259,1730478647354,-535.83,0.00046027,3]
[341154261,1730478647364,-500.0,0.00046043,3]
[341154263,1730478647373,-500.0,0.00046096,3]
[341154265,1730478647383,-500.0,0.00046096,3]
[341154267,1730478647393,-200.46,0.0004615,36]
[341154269,1730478647404,-1197.12,0.00046184,120]
[341154271,1730478647415,-500.0,0.00046196,3]
[341154273,1730478647424,-500.0,0.00046196,3]
[341154275,1730478647434,-500.0,0.00046196,3]
[341154276,1730478647444,-500.0,0.00046297,3]
[341154278,1730478647454,-500.0,0.00046301,3]
[341154280,1730478647463,-500.0,0.00046301,3]
[341154282,1730478647473,-661.85,0.00046301,3]
[341154284,1730478647484,-535.83,0.00046301,3]
[341154286,1730478647493,-500.0,0.00046316,3]
[341154288,1730478647503,-4899.89058751,0.00046338,15]
[341154290,1730478647513,-500.0,0.0004637,3]
[341154292,1730478647522,-500.0,0.0004637,3]
[341154294,1730478647532,-170.87825,0.00046375,14]
[341154296,1730478647542,-551.21940694,0.00046421,2]
[341154298,1730478647555,-150.0,0.0004646,30]
[341154300,1730478647564,-500.0,0.0004647,3]
[341154302,1730478647574,-629.88082916,0.0004647,3]
[341154304,1730478647583,-500.0,0.0004647,3]
[341154306,1730478647593,-671.0145,0.00046566,14]
[341154308,1730478647602,-500.0,0.00046571,3]
[341154310,1730478647611,-500.0,0.00046571,120]
[341154312,1730478647621,-1000.0,0.00046575,120]
[341154314,1730478647631,-500.0,0.00046575,3]
[341154316,1730478647640,-500.0,0.00046575,3]
[341154318,1730478647649,-500.0,0.00046575,3]
[341154320,1730478647659,-500.0,0.00046575,3]
[341154322,1730478647668,-500.0,0.00046575,3]
[341154323,1730478647678,-500.0,0.00046575,3]
[341154326,1730478647689,-303.54348963,0.00046575,3]
[341154327,1730478647699,-221.301634,0.00046575,14]
[341154329,1730478647708,-221.301634,0.00046575,14]
[341154331,1730478647718,-500.0,0.00046575,3]
[341154333,1730478647729,-325.7981906,0.00046575,3]
[341154335,1730478647739,-151.0,0.00046575,14]
[341154337,1730478647749,-151.0,0.00046575,14]
[341154339,1730478647759,-661.85,0.00046575,3]
[341154341,1730478647769,-535.83,0.00046575,3]
[341154343,1730478647778,-500.0,0.0004659,3]
[341154345,1730478647788,-215.5192734,0.0004659,2]
[341154347,1730478647798,-151.0,0.0004659,14]
[341154349,1730478647808,-307.32591049,0.00046599,10]
[341154351,1730478647817,-87082.73648363,0.000466,2]
[341154353,1730478647827,-500.0,0.00046644,3]
[341154355,1730478647837,-500.0,0.00046644,3]
[341154357,1730478647846,-1002.45,0.000467,30]
[341154359,1730478647856,-150.0,0.00046713,30]
[341154361,1730478647866,-500.0,0.00046744,3]
[341154363,1730478647876,-500.0,0.00046744,3]
[341154365,1730478647885,-3000.0,0.00046789,36]
[341154367,1730478647895,-500.0,0.00046812,4]
[341154369,1730478647904,-500.0,0.0004682,4]
[341154371,1730478647914,-500.0,0.00046829,4]
[341154373,1730478647923,-500.0,0.00046838,4]
[341154374,1730478647933,-500.0,0.00046844,4]
[341154375,1730478647945,-440.0,0.00046845,3]
[341154376,1730478647955,-500.0,0.00046847,4]
[341154377,1730478647966,-449.83363608,0.00046849,3]
[341154378,1730478647976,-661.85,0.00046849,3]
[341154379,1730478647987,-535.83,0.00046849,3]
[341154380,1730478647997,-500.0,0.00046852,4]
[341154381,1730478648007,-500.0,0.00046856,4]
[341154382,1730478648017,-500.0,0.00046861,4]
[341154383,1730478648027,-500.0,0.00046864,3]
[341154384,1730478648037,-500.0,0.00046864,4]
[341154385,1730478648160,-1197.12,0.00046869,120]
[341154386,1730478648170,-500.0,0.0004687,4]
[341154387,1730478648181,-500.0,0.00046873,4]
[341154388,1730478648198,-500.0,0.00046879,4]
[341154389,1730478648208,-500.0,0.00046882,4]
[341154390,1730478648218,-500.0,0.00046888,4]
[341154391,1730478648228,-500.0,0.00046891,4]
[341154392,1730478648238,-500.0,0.00046896,4]
[341154393,1730478648249,-500.0,0.000469,4]
[341154394,1730478648260,-242.77644,0.000469,120]
[341154395,1730478648270,-320.446132,0.000469,96]
[341154396,1730478648280,-1010.02,0.000469,96]
[341154397,1730478648290,-3400.0,0.000469,17]
[341154398,1730478648300,-500.0,0.000469,4]
[341154399,1730478648310,-500.0,0.00046905,4]
[341154400,1730478648322,-500.0,0.00046908,4]
[341154401,1730478648333,-500.0,0.00046914,4]
[341154402,1730478648343,-500.0,0.00046917,4]
[341154403,1730478648353,-500.0,0.00046918,3]
[341154404,1730478648363,-500.0,0.00046918,3]
[341154405,1730478648373,-500.0,0.00046923,4]
[341154406,1730478648383,-500.0,0.00046926,4]
[341154407,1730478648393,-500.0,0.00046932,4]
[341154408,1730478648403,-500.0,0.0004694,4]
[341154409,1730478648414,-500.0,0.00046943,4]
[341154410,1730478648423,-500.0,0.00046949,4]
[341154411,1730478648433,-500.0,0.00046958,4]
[341154412,1730478648450,-939.0,0.00046969,30]
[341154413,1730478648461,-150.5,0.0004697,30]
[341154414,1730478648471,-150.5,0.0004698,30]
[341154415,1730478648481,-150.5,0.0004699,30]
[341154416,1730478648491,-94519.7866435,0.00047,30]
[341154417,1730478648499,-2000.0,0.00047,3]
[341154418,1730478648509,-12002.68224378,0.00047,30]
[341154419,1730478648518,-717.73356297,0.00047,30]
[341154420,1730478648527,-4099.46559027,0.00047,30]
[341154421,1730478648536,-340.2742,0.00047,30]
[341154422,1730478648548,-10530.06545015,0.00047,30]
[341154423,1730478648559,-801.25,0.00047,30]
[341154424,1730478648569,-11009.64526256,0.00047,30]
[341154425,1730478648578,-5000.0,0.00047,30]
[341154426,1730478648588,-8213.722844,0.00047,30]
[341154427,1730478648598,-151.0,0.00047,14]
[341154428,1730478648608,-151.0,0.00047,14]
[341154429,1730478648619,-151.0,0.00047,7]
[341154430,1730478648628,-151.0,0.00047,14]
[341154431,1730478648639,-221.301634,0.00047,14]
[341154432,1730478648649,-221.301634,0.00047,14]
[341154433,1730478648658,-151.0,0.00047,14]
[341154434,1730478648668,-227.52042,0.00047,14]
[341154435,1730478648678,-151.0,0.00047,14]
[341154436,1730478648693,-500.0,0.00047018,3]
[341154437,1730478648702,-500.0,0.00047018,3]
[341154438,1730478648712,-1000.0,0.00047123,120]
[341154439,1730478648721,-661.85,0.00047123,3]
[341154440,1730478648731,-535.83,0.00047123,3]
[341154441,1730478648740,-150.0,0.00047133,30]
[341154442,1730478648750,-500.0,0.00047138,3]
[341154443,1730478648760,-1000.0,0.00047145,2]
[341154444,1730478648769,-206.67882392,0.00047192,3]
[341154445,1730478648779,-500.0,0.00047192,3]
[341154446,1730478648789,-574.19999739,0.000472,120]
[341154447,1730478648798,-1056.06,0.00047214,2]
[341154448,1730478648807,-500.0,0.00047214,2]
[341154449,1730478648816,-500.0,0.00047292,3]
[341154450,1730478648825,-500.0,0.00047292,3]
[341154451,1730478648835,-199.464,0.0004734,120]
[341154452,1730478648845,-661.95199392,0.00047397,3]
[341154453,1730478648855,-536.06134499,0.00047397,3]
[341154454,1730478648864,-400.0,0.000474,120]
[341154455,1730478648873,-500.0,0.00047412,3]
[341154456,1730478648883,-500.0,0.00047466,3]
[341154457,1730478648892,-150.0,0.0004747,30]
[341154458,1730478648901,-169.37,0.00047509,2]
[341154459,1730478648910,-500.0,0.00047529,30]
[341154460,1730478648919,-1197.12,0.00047554,120]
[341154461,1730478648929,-500.0,0.00047566,3]
[341154462,1730478648942,-500.0,0.00047566,3]
[341154463,1730478648951,-1000.0,0.00047671,120]
[341154464,1730478648961,-431.88,0.00047671,2]
[341154465,1730478648970,-150.0,0.00047671,2]
[341154466,1730478648979,-500.0,0.00047686,3]
[341154467,1730478648988,-801.25,0.000477,30]
[341154468,1730478648997,-551.21940694,0.00047709,2]
[341154469,1730478649007,-632.85410711,0.0004774,3]
[341154470,1730478649016,-500.0,0.00047747,30]
[341154471,1730478649025,-500.0,0.000478,120]
[341154472,1730478649035,-500.0,0.000478,120]
[341154473,1730478649044,-500.0,0.000478,120]
[341154474,1730478649053,-500.0,0.000478,120]
[341154475,1730478649062,-500.0,0.000478,120]
[341154476,1730478649073,-500.0,0.000478,120]
[341154477,1730478649082,-500.0,0.000478,120]
[341154478,1730478649090,-500.0,0.000478,120]
[341154479,1730478649099,-500.0,0.000478,120]
[341154480,1730478649109,-500.0,0.000478,120]
[341154481,1730478649119,-500.0,0.000478,120]
[341154482,1730478649127,-500.0,0.000478,120]
[341154483,1730478649136,-500.0,0.000478,120]
[341154484,1730478649145,-500.0,0.000478,120]
[341154485,1730478649154,-500.0,0.000478,120]
[341154486,1730478649164,-500.0,0.000478,120]
[341154487,1730478649173,-500.0,0.000478,120]
[341154488,1730478649182,-500.0,0.000478,120]
[341154489,1730478649198,-500.0,0.000478,120]
[341154490,1730478649212,-500.0,0.000478,120]
[341154491,1730478649222,-500.0,0.000478,120]
[341154492,1730478649231,-500.0,0.000478,120]
[341154493,1730478649241,-500.0,0.000478,120]
[341154494,1730478649250,-500.0,0.000478,120]
[341154495,1730478649259,-500.0,0.000478,120]
[341154496,1730478649268,-500.0,0.000478,120]
[341154497,1730478649277,-500.0,0.000478,120]
[341154498,1730478649286,-500.0,0.000478,120]
[341154499,1730478649296,-500.0,0.000478,120]
[341154500,1730478649306,-500.0,0.000478,120]
[341154501,1730478649315,-500.0,0.000478,120]
[341154502,1730478649324,-500.0,0.000478,120]
[341154503,1730478649334,-304.75706371,0.0004784,3]
[341154504,1730478649344,-500.0,0.0004784,3]
[341154505,1730478649353,-1563.67833431,0.00047889,120]
[341154506,1730478649363,-4500.0,0.000479,17]
[341154507,1730478649372,-150.0,0.00047945,60]
[341154508,1730478649382,-214.3812716,0.00047945,60]
[341154509,1730478649391,-500.0,0.0004796,3]
[341154510,1730478649401,-150.0,0.00047975,30]
[341154511,1730478649411,-2029.60273575,0.00048,120]
[341154512,1730478649420,-50000.0,0.00048,32]
[341154513,1730478649430,-25619.0,0.00048,2]
[341154514,1730478649444,-274.84700599,0.00048,100]
[341154515,1730478649454,-502.9463752,0.00048005,30]
[341154516,1730478649463,-1000.0,0.00048026,2]
[341154517,1730478649473,-1000.0,0.00048026,2]
[341154518,1730478649482,-1000.0,0.00048026,2]
[341154519,1730478649492,-1000.0,0.00048026,2]
[341154520,1730478649501,-1000.0,0.00048026,2]
[341154521,1730478649511,-1000.0,0.00048026,2]
[341154522,1730478649521,-1000.0,0.00048026,2]
[341154523,1730478649531,-1000.0,0.00048026,2]
[341154524,1730478649541,-1000.0,0.00048026,2]
[341154525,1730478649553,-1000.0,0.00048026,2]
[341154526,1730478649563,-1000.0,0.00048026,2]
[341154527,1730478649572,-804.0,0.00048026,2]
[341154528,1730478649582,-152.44,0.000481,45]
[341154529,1730478649591,-152.44,0.000481,45]
[341154530,1730478649601,-152.44,0.000481,45]
[341154531,1730478649611,-152.44,0.000481,45]
[341154532,1730478649621,-152.44,0.000481,45]
[341154533,1730478649631,-152.44,0.000481,45]
[341154534,1730478649642,-152.44,0.000481,45]
[341154535,1730478649651,-152.44,0.000481,45]
[341154536,1730478649661,-152.44,0.000481,45]
[341154537,1730478649671,-152.44,0.000481,45]
[341154538,1730478649681,-152.44,0.000481,45]
[341154539,1730478649693,-265.75,0.00048114,3]
[341154540,1730478649702,-150.0,0.0004815,30]
[341154541,1730478649711,-2000.0,0.00048219,2]
[341154542,1730478649721,-2000.0,0.00048219,2]
[341154543,1730478649730,-1000.0,0.00048219,120]
[341154544,1730478649740,-151.0,0.00048219,14]
[341154545,1730478649750,-500.0,0.00048234,3]
[341154546,1730478649759,-1197.12,0.00048239,120]
[341154547,1730478649768,-165.36,0.00048245,2]
[341154548,1730478649778,-150.0,0.00048263,120]
[341154549,1730478649789,-397.0,0.000483,36]
[341154550,1730478649800,-184.28893103,0.000483,120]
[341154551,1730478649809,-151.0,0.000483,7]
[341154552,1730478649818,-151.0,0.000483,14]
[341154553,1730478649828,-221.301634,0.000483,14]
[341154554,1730478649837,-221.301634,0.000483,14]
[341154555,1730478649847,-151.0,0.000483,14]
[341154556,1730478649856,-403.8126598,0.000483,2]
[341154557,1730478649865,-186.24566028,0.000483,10]
[341154558,1730478649874,-2057.19522798,0.000483,2]
[341154559,1730478649884,-3346.91163808,0.000483,2]
[341154560,1730478649893,-1604.72596122,0.000483,2]
[341154561,1730478649902,-151.0,0.000483,14]
[341154562,1730478649911,-1021.41284043,0.000483,120]
[341154563,1730478649921,-500.0,0.0004836,120]
[341154564,1730478649929,-4106.587803,0.00048367,2]
[341154565,1730478649941,-2890.7332899,0.00048367,2]
[341154566,1730478649950,-2312.8269337,0.00048367,2]
[341154567,1730478649959,-1628.058654,0.00048367,2]
[341154568,1730478649969,-215.5192734,0.0004839,2]
[341154569,1730478649978,-3270.52051167,0.00048393,120]
[341154570,1730478649987,-150.110113,0.00048398,120]
[341154571,1730478649996,-150.0,0.00048399,120]
[341154572,1730478650005,-27393.65789536,0.00048399,30]
[341154573,1730478650015,-446835.39274594,0.000484,3]
[341154576,1730478689630,157.08,0.00015342,2]
[341154577,1730478745186,248.98175969,0.00017605,2]
[341154578,1730478747278,553.8815,0.0003,2]
[341154579,1730479060800,200.0,0.00017174,30]
[341154580,1730479060851,200.0,0.00017174,30]
[341154581,1730479060910,200.0,0.00017174,30]
[341154582,1730479060966,201.55011494,0.00017174,30]
[341154585,1730479201567,158.08,0.00015342,2]
[341154586,1730479330889,250.0,0.00017,2]
[341154587,1730479331998,300.0,0.00019,2]
[341154588,1730479380536,-160.13,0.00032892,30]
[341154589,1730479380560,-164.61,0.00039162,120]
[341154590,1730479380582,-299.99,0.000395,120]
[341154591,1730479380605,-250.0,0.00039538,120]
[341154592,1730479380628,-1951.8,0.00040785,30]
[341154593,1730479380653,-309.819,0.00040794,59]
[341154594,1730479380683,-150.0,0.000447,60]
[341154595,1730479380707,-500.0,0.00044951,120]
[341154596,1730479380729,-163.0,0.00045,120]
[341154597,1730479380762,-3288.0,0.0004566,30]
[341154598,1730479380788,-500.0,0.0004568,76]
[341154599,1730479380811,-500.0,0.00046017,76]
[341154600,1730479380832,-500.0,0.00046137,76]
[341154601,1730479380859,-1400.36,0.00046575,120]
[341154602,1730479380881,-1400.36,0.00046849,120]
[341154603,1730479380903,-1011.46,0.000469,96]
[341154604,1730479380926,-1769.99838816,0.00046962,30]
[341154605,1730479380947,-386.036457,0.00047,30]
[341154606,1730479380969,-500.0,0.00047079,30]
[341154607,1730479380993,-1400.36,0.00047123,120]